[Event "Titled Tuesday Blitz July 6 2021"]
[White "Kotepalli, Sai Nirupama"]
[Black "Arutinian, David"]
[WhiteFideId "5039444"]
[BlackFideId "13601741"]
[WhiteElo "2426"]
[BlackElo "2525"]
[Result "1-0"]
[Round "05"]
[TimeControl "180+1"]
[Date "2021.07.06"]
[WhiteClock "0:00:11"]
[BlackClock "0:00:22"]

1. d4 {[%clk 0:03:00]}  Nf6 {[%clk 0:02:59]} 2. Bf4 {[%clk 0:03:00]}  d5 {[%clk 0:02:58]} 3. e3 {[%clk 0:02:59]}  e6 {[%clk 0:02:58]} 4. Nf3 {[%clk 0:02:52]}  Bd6 {[%clk 0:02:58]} 5. Bg3 {[%clk 0:02:51]}  O-O {[%clk 0:02:57]} 6. Bd3 {[%clk 0:02:50]}  c5 {[%clk 0:02:57]} 7. c3 {[%clk 0:02:48]}  Qc7 {[%clk 0:02:58]} 8. Nbd2 {[%clk 0:02:48]}  Nbd7 {[%clk 0:02:56]} 9. O-O {[%clk 0:02:46]}  e5 {[%clk 0:02:54]} 10. dxe5 {[%clk 0:02:45]}  Nxe5 {[%clk 0:02:51]} 11. Nxe5 {[%clk 0:02:46]}  Bxe5 {[%clk 0:02:51]} 12. Bxe5 {[%clk 0:02:47]}  Qxe5 {[%clk 0:02:50]} 13. Nf3 {[%clk 0:02:47]}  Qe7 {[%clk 0:02:45]} 14. h3 {[%clk 0:02:45]}  b6 {[%clk 0:02:45]} 15. Re1 {[%clk 0:02:44]}  Bb7 {[%clk 0:02:45]} 16. Rc1 {[%clk 0:02:43]}  Rad8 {[%clk 0:02:44]} 17. Qe2 {[%clk 0:02:35]}  Rd6 {[%clk 0:02:41]} 18. c4 {[%clk 0:02:29]}  dxc4 {[%clk 0:02:32]} 19. Bxc4 {[%clk 0:02:27]}  Ne4 {[%clk 0:02:30]} 20. Red1 {[%clk 0:02:18]}  Rg6 {[%clk 0:02:30]} 21. Bd3 {[%clk 0:02:16]}  Rh6 {[%clk 0:02:04]} 22. Bxe4 {[%clk 0:02:01]}  Bxe4 {[%clk 0:02:01]} 23. Nd2 {[%clk 0:02:00]}  Bb7 {[%clk 0:01:54]} 24. Nf1 {[%clk 0:01:58]}  Qe6 {[%clk 0:01:37]} 25. Ng3 {[%clk 0:01:54]}  Qxa2 {[%clk 0:01:20]} 26. Rd7 {[%clk 0:01:51]}  Bc6 {[%clk 0:01:19]} 27. Rc7 {[%clk 0:01:47]}  Qe6 {[%clk 0:01:19]} 28. Rxa7 {[%clk 0:01:41]}  Re8 {[%clk 0:01:17]} 29. Qg4 {[%clk 0:01:30]}  Qf6 {[%clk 0:01:16]} 30. b4 {[%clk 0:01:04]}  Rg6 {[%clk 0:01:14]} 31. Qe2 {[%clk 0:01:00]}  cxb4 {[%clk 0:01:13]} 32. Qc4 {[%clk 0:00:58]}  Qe5 {[%clk 0:01:04]} 33. Qxb4 {[%clk 0:00:49]}  h5 {[%clk 0:01:03]} 34. Qd4 {[%clk 0:00:38]}  Qg5 {[%clk 0:00:59]} 35. Qf4 {[%clk 0:00:33]}  Qxf4 {[%clk 0:00:59]} 36. exf4 {[%clk 0:00:33]}  h4 {[%clk 0:00:59]} 37. Nf5 {[%clk 0:00:32]}  Rxg2+ {[%clk 0:00:57]} 38. Kf1 {[%clk 0:00:32]}  Bf3 {[%clk 0:00:51]} 39. Nxh4 {[%clk 0:00:31]}  Rh2 {[%clk 0:00:32]} 40. Nxf3 {[%clk 0:00:31]}  Rxh3 {[%clk 0:00:33]} 41. Kg2 {[%clk 0:00:29]}  Rh6 {[%clk 0:00:33]} 42. Rcc7 {[%clk 0:00:26]}  Rg6+ {[%clk 0:00:33]} 43. Kh3 {[%clk 0:00:21]}  Rf6 {[%clk 0:00:32]} 44. Kg3 {[%clk 0:00:21]}  Rg6+ {[%clk 0:00:30]} 45. Kh4 {[%clk 0:00:19]}  Rh6+ {[%clk 0:00:29]} 46. Kg4 {[%clk 0:00:19]}  Rf6 {[%clk 0:00:29]} 47. Ng5 {[%clk 0:00:18]}  Rf8 {[%clk 0:00:29]} 48. Rcb7 {[%clk 0:00:16]}  g6 {[%clk 0:00:29]} 49. Ne4 {[%clk 0:00:15]}  Re6 {[%clk 0:00:29]} 50. f3 {[%clk 0:00:14]}  f5+ {[%clk 0:00:29]} 51. Kg5 {[%clk 0:00:14]}  Rc8 {[%clk 0:00:22]} 52. Nf6+ {[%clk 0:00:11]} 1-0


[Site "https://www.chess.com"]

[Event "Titled Tuesday Blitz July 6 2021"]
[White "Macovei, Andrei"]
[Black "Zhuravlev, Alexey"]
[WhiteFideId "13904680"]
[BlackFideId "4164199"]
[WhiteElo "2439"]
[BlackElo "2439"]
[Result "1/2-1/2"]
[Round "05"]
[TimeControl "180+1"]
[Date "2021.07.06"]
[WhiteClock "0:00:31"]
[BlackClock "0:00:06"]

1. e4 {[%clk 0:02:58]}  c6 {[%clk 0:02:58]} 2. d4 {[%clk 0:02:57]}  d5 {[%clk 0:02:59]} 3. f3 {[%clk 0:02:57]}  e6 {[%clk 0:02:57]} 4. Nc3 {[%clk 0:02:57]}  Bb4 {[%clk 0:02:56]} 5. a3 {[%clk 0:02:56]}  Bxc3+ {[%clk 0:02:55]} 6. bxc3 {[%clk 0:02:57]}  c5 {[%clk 0:02:46]} 7. Bd3 {[%clk 0:02:45]}  c4 {[%clk 0:02:29]} 8. Be2 {[%clk 0:02:41]}  Qa5 {[%clk 0:02:29]} 9. Bd2 {[%clk 0:02:37]}  Bd7 {[%clk 0:02:20]} 10. e5 {[%clk 0:02:33]}  Ne7 {[%clk 0:02:17]} 11. f4 {[%clk 0:02:33]}  g6 {[%clk 0:02:03]} 12. Nf3 {[%clk 0:02:31]}  h5 {[%clk 0:02:00]} 13. O-O {[%clk 0:02:27]}  Nf5 {[%clk 0:02:00]} 14. Qb1 {[%clk 0:02:27]}  Nc6 {[%clk 0:01:56]} 15. g3 {[%clk 0:02:26]}  O-O-O {[%clk 0:01:52]} 16. Kg2 {[%clk 0:02:26]}  Qa4 {[%clk 0:01:44]} 17. Rh1 {[%clk 0:02:21]}  Rdf8 {[%clk 0:01:20]} 18. Qb2 {[%clk 0:02:18]}  h4 {[%clk 0:01:11]} 19. g4 {[%clk 0:02:17]}  h3+ {[%clk 0:01:12]} 20. Kf2 {[%clk 0:02:17]}  Nh4 {[%clk 0:01:11]} 21. Nxh4 {[%clk 0:02:10]}  Rxh4 {[%clk 0:01:11]} 22. Kg3 {[%clk 0:02:09]}  Rh7 {[%clk 0:01:06]} 23. Rhf1 {[%clk 0:02:09]}  f6 {[%clk 0:01:01]} 24. Rae1 {[%clk 0:02:03]}  f5 {[%clk 0:00:58]} 25. g5 {[%clk 0:02:03]}  Rfh8 {[%clk 0:00:50]} 26. Rf3 {[%clk 0:02:03]}  Qa5 {[%clk 0:00:44]} 27. Qc1 {[%clk 0:02:01]}  Nd8 {[%clk 0:00:34]} 28. Kf2 {[%clk 0:02:01]}  Ba4 {[%clk 0:00:34]} 29. Rg1 {[%clk 0:02:00]}  Nc6 {[%clk 0:00:23]} 30. Rgg3 {[%clk 0:01:59]}  Qd8 {[%clk 0:00:15]} 31. Bf1 {[%clk 0:01:59]}  Qf8 {[%clk 0:00:14]} 32. Rxh3 {[%clk 0:01:59]}  Rxh3 {[%clk 0:00:15]} 33. Rxh3 {[%clk 0:02:00]}  Rxh3 {[%clk 0:00:15]} 34. Bxh3 {[%clk 0:02:01]}  Qh8 {[%clk 0:00:15]} 35. Kg3 {[%clk 0:01:59]}  Qh5 {[%clk 0:00:16]} 36. Be3 {[%clk 0:01:52]}  Qe2 {[%clk 0:00:15]} 37. Qd2 {[%clk 0:01:52]}  Qxd2 {[%clk 0:00:15]} 38. Bxd2 {[%clk 0:01:53]}  Bxc2 {[%clk 0:00:15]} 39. Bg2 {[%clk 0:01:52]}  Bd1 {[%clk 0:00:15]} 40. Kf2 {[%clk 0:01:52]}  Kd7 {[%clk 0:00:15]} 41. Ke1 {[%clk 0:01:50]}  Bh5 {[%clk 0:00:14]} 42. Be3 {[%clk 0:01:48]}  Ke7 {[%clk 0:00:14]} 43. Kd2 {[%clk 0:01:48]}  Na5 {[%clk 0:00:15]} 44. Kc2 {[%clk 0:01:48]}  b5 {[%clk 0:00:14]} 45. Kb2 {[%clk 0:01:49]}  Nb3 {[%clk 0:00:14]} 46. Bf1 {[%clk 0:01:46]}  a5 {[%clk 0:00:14]} 47. Kc2 {[%clk 0:01:44]}  Kd7 {[%clk 0:00:14]} 48. Bg2 {[%clk 0:01:39]}  Be2 {[%clk 0:00:13]} 49. Kb2 {[%clk 0:01:38]}  Kc6 {[%clk 0:00:12]} 50. Bh1 {[%clk 0:01:37]}  Kb6 {[%clk 0:00:11]} 51. Bg2 {[%clk 0:01:36]}  Bh5 {[%clk 0:00:11]} 52. Bf1 {[%clk 0:01:36]}  Kc6 {[%clk 0:00:11]} 53. Kc2 {[%clk 0:01:31]}  Bf3 {[%clk 0:00:10]} 54. Bc1 {[%clk 0:01:28]}  Kb6 {[%clk 0:00:09]} 55. Bd2 {[%clk 0:01:27]}  Kc6 {[%clk 0:00:09]} 56. Be1 {[%clk 0:01:27]}  Kb6 {[%clk 0:00:09]} 57. Kb2 {[%clk 0:01:27]}  Kc6 {[%clk 0:00:08]} 58. h3 {[%clk 0:01:22]}  Kb6 {[%clk 0:00:08]} 59. h4 {[%clk 0:01:14]}  Kc6 {[%clk 0:00:08]} 60. Bh3 {[%clk 0:01:11]}  Kb6 {[%clk 0:00:08]} 61. Bf1 {[%clk 0:01:11]}  Kc6 {[%clk 0:00:08]} 62. Kc2 {[%clk 0:01:09]}  Kb6 {[%clk 0:00:08]} 63. Bd2 {[%clk 0:01:09]}  Kc6 {[%clk 0:00:08]} 64. Be3 {[%clk 0:01:09]}  Kb6 {[%clk 0:00:08]} 65. Kb2 {[%clk 0:01:06]}  Kc6 {[%clk 0:00:08]} 66. Bh3 {[%clk 0:01:03]}  a4 {[%clk 0:00:07]} 67. Kc2 {[%clk 0:01:00]}  Kb6 {[%clk 0:00:07]} 68. Bf1 {[%clk 0:01:00]}  Kc6 {[%clk 0:00:07]} 69. Bf2 {[%clk 0:01:00]}  Kd7 {[%clk 0:00:07]} 70. Bg3 {[%clk 0:01:01]}  Kc6 {[%clk 0:00:07]} 71. Kb2 {[%clk 0:01:00]}  Kd7 {[%clk 0:00:08]} 72. Kc2 {[%clk 0:01:00]}  Kc6 {[%clk 0:00:08]} 73. Be1 {[%clk 0:01:00]}  Kd7 {[%clk 0:00:07]} 74. Bd2 {[%clk 0:01:00]}  Kc6 {[%clk 0:00:07]} 75. Be3 {[%clk 0:01:01]}  Kd7 {[%clk 0:00:07]} 76. Kb2 {[%clk 0:00:59]}  Kc6 {[%clk 0:00:07]} 77. Kb1 {[%clk 0:01:00]}  Kd7 {[%clk 0:00:07]} 78. Ka2 {[%clk 0:01:00]}  Kc6 {[%clk 0:00:07]} 79. Kb2 {[%clk 0:01:00]}  Kd7 {[%clk 0:00:08]} 80. Kc2 {[%clk 0:00:59]}  Kc6 {[%clk 0:00:08]} 81. h5 {[%clk 0:01:00]}  Bxh5 {[%clk 0:00:06]} 82. Bg2 {[%clk 0:00:59]}  Be2 {[%clk 0:00:06]} 83. Bh1 {[%clk 0:00:59]}  Bd3+ {[%clk 0:00:06]} 84. Kb2 {[%clk 0:00:59]}  Be4 {[%clk 0:00:06]} 85. Bxe4 {[%clk 0:00:40]}  dxe4 {[%clk 0:00:07]} 86. Kc2 {[%clk 0:00:41]}  Kd5 {[%clk 0:00:07]} 87. Kb2 {[%clk 0:00:40]}  Na5 {[%clk 0:00:07]} 88. Kc2 {[%clk 0:00:40]}  Nc6 {[%clk 0:00:07]} 89. Kb2 {[%clk 0:00:40]}  Nd8 {[%clk 0:00:05]} 90. Kc2 {[%clk 0:00:40]}  Nb7 {[%clk 0:00:05]} 91. Kb2 {[%clk 0:00:40]}  Na5 {[%clk 0:00:06]} 92. Kc2 {[%clk 0:00:40]}  Nc6 {[%clk 0:00:04]} 93. Kb2 {[%clk 0:00:40]}  Nb8 {[%clk 0:00:05]} 94. Kc2 {[%clk 0:00:40]}  Nd7 {[%clk 0:00:05]} 95. Kd2 {[%clk 0:00:40]}  Nf8 {[%clk 0:00:05]} 96. Kc2 {[%clk 0:00:40]}  Nh7 {[%clk 0:00:05]} 97. Kb2 {[%clk 0:00:41]}  Nf8 {[%clk 0:00:05]} 98. Kc2 {[%clk 0:00:41]}  Nd7 {[%clk 0:00:06]} 99. Kb1 {[%clk 0:00:41]}  Nb8 {[%clk 0:00:06]} 100. Kb2 {[%clk 0:00:42]}  Na6 {[%clk 0:00:05]} 101. Ka2 {[%clk 0:00:42]}  Nc7 {[%clk 0:00:06]} 102. Kb2 {[%clk 0:00:42]}  Ne8 {[%clk 0:00:07]} 103. Kb1 {[%clk 0:00:42]}  Ng7 {[%clk 0:00:08]} 104. Kc1 {[%clk 0:00:42]}  Nh5 {[%clk 0:00:08]} 105. Kd2 {[%clk 0:00:41]}  Ng3 {[%clk 0:00:08]} 106. Ke1 {[%clk 0:00:41]}  Nh5 {[%clk 0:00:06]} 107. Kd2 {[%clk 0:00:41]}  Ng7 {[%clk 0:00:05]} 108. Kc2 {[%clk 0:00:41]}  Nh5 {[%clk 0:00:06]} 109. Kd1 {[%clk 0:00:41]}  Kc6 {[%clk 0:00:06]} 110. Kd2 {[%clk 0:00:41]}  Ng3 {[%clk 0:00:06]} 111. Ke1 {[%clk 0:00:41]}  Kd5 {[%clk 0:00:06]} 112. Kf2 {[%clk 0:00:41]}  Nh5 {[%clk 0:00:06]} 113. Ke1 {[%clk 0:00:39]}  Kc6 {[%clk 0:00:06]} 114. Ke2 {[%clk 0:00:39]}  Ng3+ {[%clk 0:00:06]} 115. Kf2 {[%clk 0:00:39]}  Nh5 {[%clk 0:00:05]} 116. Ke1 {[%clk 0:00:39]}  Kb7 {[%clk 0:00:04]} 117. Kf2 {[%clk 0:00:39]}  Kc7 {[%clk 0:00:04]} 118. Ke1 {[%clk 0:00:30]}  Kc6 {[%clk 0:00:04]} 119. Kf2 {[%clk 0:00:30]}  Kd5 {[%clk 0:00:04]} 120. Ke2 {[%clk 0:00:30]}  Ng7 {[%clk 0:00:05]} 121. Ke1 {[%clk 0:00:30]}  Ne8 {[%clk 0:00:05]} 122. Kd2 {[%clk 0:00:30]}  Nc7 {[%clk 0:00:05]} 123. Kc2 {[%clk 0:00:31]}  Na6 {[%clk 0:00:05]} 124. Kb2 {[%clk 0:00:31]}  Nb8 {[%clk 0:00:06]} 125. Kc2 {[%clk 0:00:31]}  Nc6 {[%clk 0:00:06]} 1/2-1/2


[Site "https://www.chess.com"]

[Event "Titled Tuesday Blitz July 6 2021"]
[White "Malka, Samuel"]
[Black "Dang, Hoang Son"]
[WhiteFideId "20643675"]
[BlackFideId "12402435"]
[WhiteElo "2459"]
[BlackElo "2248"]
[Result "0-1"]
[Round "05"]
[TimeControl "180+1"]
[Date "2021.07.06"]
[WhiteClock "0:00:09"]
[BlackClock "0:02:04"]

1. d4 {[%clk 0:03:00]}  Nf6 {[%clk 0:02:59]} 2. c4 {[%clk 0:03:00]}  g6 {[%clk 0:03:00]} 3. Nc3 {[%clk 0:02:59]}  Bg7 {[%clk 0:03:01]} 4. e4 {[%clk 0:02:59]}  O-O {[%clk 0:03:02]} 5. Bd3 {[%clk 0:03:00]}  d6 {[%clk 0:03:02]} 6. Nge2 {[%clk 0:03:00]}  e5 {[%clk 0:03:02]} 7. d5 {[%clk 0:03:00]}  Na6 {[%clk 0:03:02]} 8. f3 {[%clk 0:02:57]}  Nc5 {[%clk 0:03:01]} 9. Bc2 {[%clk 0:02:57]}  a5 {[%clk 0:03:01]} 10. Be3 {[%clk 0:02:57]}  Bd7 {[%clk 0:02:58]} 11. O-O {[%clk 0:02:56]}  b6 {[%clk 0:02:55]} 12. b3 {[%clk 0:02:49]}  h6 {[%clk 0:02:53]} 13. a3 {[%clk 0:02:46]}  Nh7 {[%clk 0:02:50]} 14. b4 {[%clk 0:02:46]}  Nb7 {[%clk 0:02:50]} 15. Ba4 {[%clk 0:02:26]}  f5 {[%clk 0:02:45]} 16. Bxd7 {[%clk 0:02:26]}  Qxd7 {[%clk 0:02:46]} 17. exf5 {[%clk 0:02:26]}  gxf5 {[%clk 0:02:46]} 18. Rb1 {[%clk 0:01:58]}  Qe7 {[%clk 0:02:42]} 19. Nb5 {[%clk 0:01:34]}  axb4 {[%clk 0:02:40]} 20. axb4 {[%clk 0:01:33]}  Rf7 {[%clk 0:02:38]} 21. Bf2 {[%clk 0:01:27]}  Raf8 {[%clk 0:02:33]} 22. f4 {[%clk 0:01:20]}  Nf6 {[%clk 0:02:31]} 23. fxe5 {[%clk 0:01:16]}  dxe5 {[%clk 0:02:32]} 24. Ng3 {[%clk 0:01:13]}  Qd7 {[%clk 0:02:18]} 25. Nh5 {[%clk 0:00:56]}  Ne4 {[%clk 0:02:11]} 26. Nxg7 {[%clk 0:00:44]}  Rxg7 {[%clk 0:02:11]} 27. Kh1 {[%clk 0:00:37]}  Nbd6 {[%clk 0:02:06]} 28. Nxd6 {[%clk 0:00:31]}  Qxd6 {[%clk 0:02:06]} 29. Qd3 {[%clk 0:00:27]}  Qg6 {[%clk 0:02:05]} 30. Bg3 {[%clk 0:00:20]}  f4 {[%clk 0:02:05]} 31. Rbe1 {[%clk 0:00:09]}  Nxg3+ {[%clk 0:02:04]} 32. hxg3 {[%clk 0:00:09]}  Qxd3 {[%clk 0:02:04]} 0-1


[Site "https://www.chess.com"]

[Event "Titled Tuesday Blitz July 6 2021"]
[White "Mezentsev, Ivan"]
[Black "Guliev, Logman"]
[WhiteFideId "13706195"]
[BlackFideId "13400061"]
[WhiteElo "2295"]
[BlackElo "2128"]
[Result "1-0"]
[Round "05"]
[TimeControl "180+1"]
[Date "2021.07.06"]
[WhiteClock "0:01:07"]
[BlackClock "0:00:02"]

1. d4 {[%clk 0:03:00]}  d5 {[%clk 0:02:58]} 2. Nf3 {[%clk 0:03:01]}  e6 {[%clk 0:02:58]} 3. Bf4 {[%clk 0:03:00]}  Bd6 {[%clk 0:02:56]} 4. Bg3 {[%clk 0:02:59]}  Bxg3 {[%clk 0:02:54]} 5. hxg3 {[%clk 0:02:59]}  Ne7 {[%clk 0:02:55]} 6. e3 {[%clk 0:02:57]}  c5 {[%clk 0:02:55]} 7. c3 {[%clk 0:02:56]}  Nd7 {[%clk 0:02:55]} 8. Bd3 {[%clk 0:02:55]}  Nf6 {[%clk 0:02:54]} 9. dxc5 {[%clk 0:02:52]}  Qc7 {[%clk 0:02:49]} 10. b4 {[%clk 0:02:51]}  a5 {[%clk 0:02:49]} 11. a3 {[%clk 0:02:50]}  e5 {[%clk 0:02:49]} 12. Be2 {[%clk 0:02:48]}  Bf5 {[%clk 0:02:46]} 13. Nbd2 {[%clk 0:02:48]}  O-O {[%clk 0:02:42]} 14. O-O {[%clk 0:02:47]}  b6 {[%clk 0:02:41]} 15. cxb6 {[%clk 0:02:38]}  Qxc3 {[%clk 0:02:40]} 16. bxa5 {[%clk 0:02:15]}  Rxa5 {[%clk 0:02:32]} 17. Rc1 {[%clk 0:02:09]}  Qb2 {[%clk 0:02:26]} 18. a4 {[%clk 0:02:00]}  e4 {[%clk 0:02:14]} 19. Rb1 {[%clk 0:01:49]}  Qa2 {[%clk 0:02:08]} 20. Nd4 {[%clk 0:01:48]}  Rxa4 {[%clk 0:02:06]} 21. N2b3 {[%clk 0:01:35]}  Rb4 {[%clk 0:01:51]} 22. Nc5 {[%clk 0:01:33]}  Qa5 {[%clk 0:01:33]} 23. Qd2 {[%clk 0:01:19]}  Rb5 {[%clk 0:01:10]} 24. Qxa5 {[%clk 0:01:17]}  Rxa5 {[%clk 0:01:10]} 25. Rfc1 {[%clk 0:01:17]}  Rb8 {[%clk 0:01:03]} 26. b7 {[%clk 0:01:16]}  g6 {[%clk 0:00:50]} 27. Na6 {[%clk 0:01:12]}  Rxa6 {[%clk 0:00:25]} 28. Bxa6 {[%clk 0:01:11]}  Bg4 {[%clk 0:00:04]} 29. Rc7 {[%clk 0:01:08]}  Kf8 {[%clk 0:00:02]} 30. Rxe7 {[%clk 0:01:07]} 1-0


[Site "https://www.chess.com"]

[Event "Titled Tuesday Blitz July 6 2021"]
[White "Moroni, Luca Jr"]
[Black "Dubov, Daniil"]
[WhiteFideId "865834"]
[BlackFideId "24126055"]
[WhiteElo "2491"]
[BlackElo "2722"]
[Result "0-1"]
[Round "05"]
[TimeControl "180+1"]
[Date "2021.07.06"]
[WhiteClock "0:00:32"]
[BlackClock "0:00:07"]

1. d4 {[%clk 0:03:00]}  Nf6 {[%clk 0:02:58]} 2. c4 {[%clk 0:03:01]}  g6 {[%clk 0:02:57]} 3. Nc3 {[%clk 0:03:01]}  Bg7 {[%clk 0:02:55]} 4. e4 {[%clk 0:03:01]}  d6 {[%clk 0:02:56]} 5. Bd3 {[%clk 0:03:01]}  Nc6 {[%clk 0:02:55]} 6. Nge2 {[%clk 0:03:01]}  Nd7 {[%clk 0:02:55]} 7. Bc2 {[%clk 0:02:55]}  e5 {[%clk 0:02:54]} 8. d5 {[%clk 0:02:55]}  Ne7 {[%clk 0:02:40]} 9. O-O {[%clk 0:02:52]}  O-O {[%clk 0:02:39]} 10. Be3 {[%clk 0:02:36]}  a5 {[%clk 0:02:38]} 11. Qd2 {[%clk 0:02:33]}  f5 {[%clk 0:02:32]} 12. f4 {[%clk 0:02:32]}  g5 {[%clk 0:01:55]} 13. fxe5 {[%clk 0:02:03]}  f4 {[%clk 0:01:54]} 14. exd6 {[%clk 0:01:58]}  cxd6 {[%clk 0:01:53]} 15. Bd4 {[%clk 0:01:49]}  Ne5 {[%clk 0:01:53]} 16. c5 {[%clk 0:01:38]}  N7g6 {[%clk 0:01:52]} 17. cxd6 {[%clk 0:01:34]}  Nh4 {[%clk 0:01:35]} 18. Nb5 {[%clk 0:01:21]}  f3 {[%clk 0:01:28]} 19. Qc3 {[%clk 0:01:03]}  fxg2 {[%clk 0:00:47]} 20. Rxf8+ {[%clk 0:01:04]}  Qxf8 {[%clk 0:00:46]} 21. Bxe5 {[%clk 0:01:04]}  Bxe5 {[%clk 0:00:31]} 22. Ned4 {[%clk 0:01:01]}  Bd7 {[%clk 0:00:23]} 23. Ne6 {[%clk 0:00:52]}  Bxe6 {[%clk 0:00:18]} 24. Qxe5 {[%clk 0:00:49]}  Nf3+ {[%clk 0:00:17]} 25. Kxg2 {[%clk 0:00:49]}  Nxe5 {[%clk 0:00:18]} 26. dxe6 {[%clk 0:00:50]}  Qf3+ {[%clk 0:00:17]} 27. Kg1 {[%clk 0:00:50]}  Qe3+ {[%clk 0:00:18]} 28. Kh1 {[%clk 0:00:50]}  Qf3+ {[%clk 0:00:17]} 29. Kg1 {[%clk 0:00:51]}  Ng4 {[%clk 0:00:18]} 30. Rf1 {[%clk 0:00:47]}  Qe2 {[%clk 0:00:17]} 31. Rf7 {[%clk 0:00:37]}  Qxh2+ {[%clk 0:00:16]} 32. Kf1 {[%clk 0:00:37]}  Ne3+ {[%clk 0:00:17]} 33. Ke1 {[%clk 0:00:37]}  Nxc2+ {[%clk 0:00:18]} 34. Kd1 {[%clk 0:00:38]}  Ne3+ {[%clk 0:00:18]} 35. Ke1 {[%clk 0:00:38]}  Qg3+ {[%clk 0:00:13]} 36. Ke2 {[%clk 0:00:38]}  Nc4 {[%clk 0:00:08]} 37. d7 {[%clk 0:00:33]}  Qe3+ {[%clk 0:00:08]} 38. Kf1 {[%clk 0:00:31]}  Nd2+ {[%clk 0:00:06]} 39. Kg2 {[%clk 0:00:31]}  Qxe4+ {[%clk 0:00:07]} 40. Kf2 {[%clk 0:00:32]}  Qxe6 {[%clk 0:00:07]} 0-1


[Site "https://www.chess.com"]

[Event "Titled Tuesday Blitz July 6 2021"]
[White "Navalgund, Niranjan"]
[Black "Matinian, Nikita"]
[WhiteFideId "5030854"]
[BlackFideId "24129100"]
[WhiteElo "2290"]
[BlackElo "2410"]
[Result "0-1"]
[Round "05"]
[TimeControl "180+1"]
[Date "2021.07.06"]
[WhiteClock "0:00:03"]
[BlackClock "0:00:25"]

1. d4 {[%clk 0:03:00]}  c5 {[%clk 0:03:00]} 2. dxc5 {[%clk 0:03:00]}  e5 {[%clk 0:03:00]} 3. Nd2 {[%clk 0:02:56]}  Nf6 {[%clk 0:02:49]} 4. Nb3 {[%clk 0:02:53]}  Na6 {[%clk 0:02:46]} 5. g3 {[%clk 0:02:34]}  Nxc5 {[%clk 0:02:40]} 6. Bg2 {[%clk 0:02:34]}  d5 {[%clk 0:02:32]} 7. Nf3 {[%clk 0:02:33]}  e4 {[%clk 0:02:29]} 8. Nfd4 {[%clk 0:02:31]}  Be7 {[%clk 0:02:21]} 9. O-O {[%clk 0:02:29]}  O-O {[%clk 0:02:21]} 10. Bg5 {[%clk 0:02:22]}  Ne6 {[%clk 0:02:19]} 11. Be3 {[%clk 0:02:13]}  Ng4 {[%clk 0:02:14]} 12. Bc1 {[%clk 0:02:12]}  f5 {[%clk 0:02:11]} 13. h3 {[%clk 0:02:03]}  Ne5 {[%clk 0:02:09]} 14. Nxe6 {[%clk 0:02:01]}  Bxe6 {[%clk 0:02:09]} 15. Nd4 {[%clk 0:02:02]}  Qd7 {[%clk 0:02:07]} 16. Bf4 {[%clk 0:02:03]}  Ng6 {[%clk 0:02:07]} 17. e3 {[%clk 0:01:58]}  Rac8 {[%clk 0:01:58]} 18. c3 {[%clk 0:01:51]}  Nxf4 {[%clk 0:01:57]} 19. gxf4 {[%clk 0:01:51]}  Rf6 {[%clk 0:01:57]} 20. Kh2 {[%clk 0:01:50]}  Rh6 {[%clk 0:01:57]} 21. Rg1 {[%clk 0:01:46]}  Bf7 {[%clk 0:01:58]} 22. Qe2 {[%clk 0:01:36]}  Bh5 {[%clk 0:01:54]} 23. Qb5 {[%clk 0:01:35]}  Qxb5 {[%clk 0:01:53]} 24. Nxb5 {[%clk 0:01:35]}  a6 {[%clk 0:01:54]} 25. Nd4 {[%clk 0:01:34]}  Rf8 {[%clk 0:01:52]} 26. f3 {[%clk 0:01:27]}  Rb6 {[%clk 0:01:49]} 27. fxe4 {[%clk 0:01:24]}  dxe4 {[%clk 0:01:44]} 28. Rab1 {[%clk 0:01:23]}  Bh4 {[%clk 0:01:43]} 29. Rgf1 {[%clk 0:01:14]}  Rff6 {[%clk 0:01:29]} 30. c4 {[%clk 0:00:59]}  Rbd6 {[%clk 0:01:17]} 31. Rbc1 {[%clk 0:00:52]}  Rxd4 {[%clk 0:00:56]} 32. exd4 {[%clk 0:00:52]}  Be2 {[%clk 0:00:57]} 33. Rh1 {[%clk 0:00:44]}  Rg6 {[%clk 0:00:57]} 34. Rc3 {[%clk 0:00:40]}  Bf2 {[%clk 0:00:55]} 35. d5 {[%clk 0:00:35]}  e3 {[%clk 0:00:47]} 36. c5 {[%clk 0:00:21]}  Bg3+ {[%clk 0:00:45]} 37. Kg1 {[%clk 0:00:20]}  Bxf4 {[%clk 0:00:45]} 38. c6 {[%clk 0:00:12]}  Bf3 {[%clk 0:00:44]} 39. Rc2 {[%clk 0:00:10]}  e2 {[%clk 0:00:37]} 40. Rxe2 {[%clk 0:00:06]}  Bxe2 {[%clk 0:00:38]} 41. Kf2 {[%clk 0:00:06]}  bxc6 {[%clk 0:00:33]} 42. dxc6 {[%clk 0:00:05]}  Bb5 {[%clk 0:00:32]} 43. Rd1 {[%clk 0:00:04]}  Bg3+ {[%clk 0:00:25]} 44. Kg1 {[%clk 0:00:03]}  Bc7 {[%clk 0:00:25]} 45. Rd7 {[%clk 0:00:03]}  Rxg2+ {[%clk 0:00:25]} 46. Kxg2 {[%clk 0:00:03]}  Bxc6+ {[%clk 0:00:25]} 0-1


[Site "https://www.chess.com"]

[Event "Titled Tuesday Blitz July 6 2021"]
[White "Obregon, Andres Carlos"]
[Black "Mitrabha, Guha"]
[WhiteFideId "111724"]
[BlackFideId "5057000"]
[WhiteElo "2572"]
[BlackElo "2334"]
[Result "1-0"]
[Round "05"]
[TimeControl "180+1"]
[Date "2021.07.06"]
[WhiteClock "0:00:20"]
[BlackClock "0:00:02"]

1. d4 {[%clk 0:03:00]}  Nf6 {[%clk 0:02:53]} 2. Bf4 {[%clk 0:03:00]}  b6 {[%clk 0:02:51]} 3. Nf3 {[%clk 0:02:59]}  Bb7 {[%clk 0:02:52]} 4. e3 {[%clk 0:03:00]}  d6 {[%clk 0:02:52]} 5. h3 {[%clk 0:02:57]}  Nbd7 {[%clk 0:02:53]} 6. Bh2 {[%clk 0:02:57]}  g6 {[%clk 0:02:53]} 7. c4 {[%clk 0:02:54]}  Bg7 {[%clk 0:02:53]} 8. Nc3 {[%clk 0:02:54]}  Ne4 {[%clk 0:02:53]} 9. Be2 {[%clk 0:02:36]}  O-O {[%clk 0:02:49]} 10. O-O {[%clk 0:02:36]}  c5 {[%clk 0:02:45]} 11. Rc1 {[%clk 0:02:25]}  Rc8 {[%clk 0:02:43]} 12. Nd5 {[%clk 0:01:54]}  Ndf6 {[%clk 0:02:40]} 13. Nxf6+ {[%clk 0:01:52]}  Bxf6 {[%clk 0:02:35]} 14. Bd3 {[%clk 0:01:43]}  cxd4 {[%clk 0:02:35]} 15. Nxd4 {[%clk 0:01:38]}  Nc5 {[%clk 0:02:32]} 16. Be2 {[%clk 0:01:38]}  a6 {[%clk 0:02:30]} 17. Rc2 {[%clk 0:01:20]}  Be4 {[%clk 0:02:27]} 18. Rd2 {[%clk 0:01:20]}  Qc7 {[%clk 0:02:26]} 19. Bf3 {[%clk 0:01:19]}  Qb7 {[%clk 0:02:25]} 20. b3 {[%clk 0:01:15]}  Bxd4 {[%clk 0:02:13]} 21. exd4 {[%clk 0:01:13]}  Bxf3 {[%clk 0:02:12]} 22. Qxf3 {[%clk 0:01:13]}  Qxf3 {[%clk 0:02:12]} 23. gxf3 {[%clk 0:01:14]}  Ne6 {[%clk 0:01:51]} 24. Re1 {[%clk 0:01:14]}  Rfe8 {[%clk 0:01:51]} 25. d5 {[%clk 0:01:07]}  Ng7 {[%clk 0:01:51]} 26. Bf4 {[%clk 0:01:05]}  Nf5 {[%clk 0:01:47]} 27. a4 {[%clk 0:01:03]}  b5 {[%clk 0:01:45]} 28. cxb5 {[%clk 0:01:02]}  axb5 {[%clk 0:01:46]} 29. a5 {[%clk 0:01:02]}  b4 {[%clk 0:01:43]} 30. Re4 {[%clk 0:00:53]}  Rc5 {[%clk 0:01:41]} 31. a6 {[%clk 0:00:50]}  Ra5 {[%clk 0:01:39]} 32. Rxb4 {[%clk 0:00:51]}  Rxa6 {[%clk 0:01:40]} 33. Kg2 {[%clk 0:00:47]}  Kg7 {[%clk 0:01:35]} 34. Be3 {[%clk 0:00:46]}  Rc8 {[%clk 0:01:31]} 35. Rb7 {[%clk 0:00:45]}  Ra1 {[%clk 0:01:27]} 36. Bd4+ {[%clk 0:00:41]}  f6 {[%clk 0:01:27]} 37. Bxa1 {[%clk 0:00:40]}  Rc1 {[%clk 0:01:19]} 38. Bd4 {[%clk 0:00:36]}  Nh4+ {[%clk 0:01:12]} 39. Kg3 {[%clk 0:00:37]}  Rg1+ {[%clk 0:00:20]} 40. Kf4 {[%clk 0:00:35]}  Re1 {[%clk 0:00:10]} 41. Be3 {[%clk 0:00:33]}  f5 {[%clk 0:00:10]} 42. Kg3 {[%clk 0:00:25]}  f4+ {[%clk 0:00:01]} 43. Kxf4 {[%clk 0:00:24]}  Kf6 {[%clk 0:00:02]} 44. Ke4 {[%clk 0:00:21]}  Nf5 {[%clk 0:00:02]} 45. b4 {[%clk 0:00:20]} 1-0


[Site "https://www.chess.com"]